bitfinex-derivatives/quotes_BTCF0:USTF0_20250127
["timestamp","ask_amount","ask_price","bid_price","bid_amount"]
[1737940487636,0.1,101500.0,101470.0,0.76794143]
[1737940487836,0.1,101500.0,101490.0,0.557971]
[1737940488239,0.1,101500.0,101490.0,0.918771]
[1737940488545,0.3608,101530.0,101490.0,0.7216]
[1737940488837,0.00147891,101540.0,101520.0,0.197097]
[1737940489039,0.00014822,101520.0,101500.0,0.55808322]
[1737940489230,0.36094822,101520.0,101500.0,0.55808322]
[1737940489438,0.36094822,101520.0,101500.0,0.36094822]
[1737940489737,0.36094822,101520.0,101510.0,0.197132]
[1737940489936,0.34241406,101520.0,101510.0,0.197132]
[1737940490944,0.00147891,101540.0,101530.0,0.197093]
[1737940491636,0.00093909,101540.0,101530.0,0.41371732]
[1737940491838,0.00014822,101550.0,101540.0,0.197073]
[1737940492230,0.00014822,101550.0,101540.0,0.557873]
[1737940492438,0.3608,101560.0,101540.0,0.98193379]
[1737940492635,0.3608,101570.0,101560.0,0.197035]
[1737940492847,0.2655,101590.0,101560.0,0.197027]
[1737940492848,0.83290569,101590.0,101560.0,0.197027]
[1737940493038,0.557796,101580.0,101560.0,0.197027]
[1737940493339,0.557829,101570.0,101550.0,0.197054]
[1737940493545,0.582416,101580.0,101550.0,0.57742432]
[1737940493843,0.582416,101580.0,101550.0,0.00014822]
[1737940493844,0.557835,101560.0,101550.0,0.00014822]
[1737940494250,0.3608,101560.0,101550.0,0.19720222]
[1737940494636,0.55791937,101570.0,101550.0,0.19720222]
[1737940494843,0.557835,101560.0,101550.0,0.00014822]
[1737940495142,0.197081,101540.0,101520.0,0.197109]
[1737940495332,0.557909,101530.0,101510.0,0.197129]
[1737940495538,0.197132,101510.0,101500.0,0.00147783]
[1737940495732,0.197132,101510.0,101500.0,0.19862883]
[1737940496239,0.557878,101540.0,101520.0,0.197108]
[1737940496442,0.3608,101530.0,101520.0,0.197108]
[1737940496840,0.3608,101530.0,101510.0,0.197127]
[1737940497035,0.557912,101520.0,101500.0,0.19861783]
[1737940497233,0.557912,101520.0,101510.0,0.00014822]
[1737940497439,0.918712,101520.0,101510.0,0.00014822]
[1737940497742,0.197152,101500.0,101480.0,0.19731362]
[1737940497937,0.19717,101490.0,101480.0,0.19731362]
[1737940498443,0.19717,101490.0,101480.0,0.00012762]
[1737940498444,0.55797,101490.0,101480.0,0.00012762]
[1737940498747,0.197209,101470.0,101460.0,0.197225]
[1737940498934,0.3608,101470.0,101450.0,0.36227841]
[1737940499139,0.3608,101470.0,101410.0,0.91067582]
[1737940499140,0.57742432,101460.0,101410.0,0.21670014]
[1737940499335,0.3608,101440.0,101420.0,0.197294]
[1737940499540,0.3608,101430.0,101420.0,0.197294]
[1737940499946,0.197295,101430.0,101420.0,0.00014822]
[1737940500149,0.558095,101430.0,101420.0,0.00014822]
[1737940500450,0.558095,101430.0,101410.0,7.582e-05]
[1737940500451,0.197306,101420.0,101410.0,7.582e-05]
[1737940500647,0.77473032,101420.0,101410.0,7.582e-05]
[1737940500853,0.197345,101400.0,101390.0,0.00147912]
[1737940501151,0.197345,101400.0,101360.0,0.197412]
[1737940501152,0.93822432,101400.0,101360.0,0.197412]
[1737940501451,0.3608,101380.0,101360.0,0.197409]
[1737940501749,0.00014822,101390.0,101380.0,0.197384]
[1737940501948,0.00021786,101390.0,101380.0,0.558184]
[1737940502250,0.0014798,101430.0,101420.0,0.197306]
[1737940502453,0.0014798,101430.0,101420.0,0.77473032]
[1737940502745,0.694953,101450.0,101440.0,0.197268]
[1737940502949,0.1369,101450.0,101440.0,0.192368]
[1737940503142,4.099e-05,101450.0,101440.0,0.77469232]
[1737940503449,4.099e-05,101450.0,101440.0,0.78949232]
[1737940503753,0.55945533,101490.0,101470.0,0.197201]
[1737940504048,0.3608,101480.0,101440.0,0.59222432]
[1737940504250,0.3608,101480.0,101450.0,0.197243]
[1737940504251,0.55802,101470.0,101450.0,0.197243]
[1737940504452,0.3608,101460.0,101450.0,0.197243]
[1737940504747,0.3608,101460.0,101450.0,1.697243]
[1737940504953,0.3608,101480.0,101460.0,0.197229]
[1737940505152,0.00014822,101470.0,101460.0,0.197229]
[1737940505841,0.49817933,101490.0,101460.0,0.98886337]
[1737940506150,0.36211173,101490.0,101480.0,0.19719]
[1737940506357,0.55928273,101490.0,101470.0,0.197208]
[1737940506852,0.3638,101480.0,101470.0,0.30203561]
[1737940507054,0.56099,101480.0,101460.0,0.197227]
[1737940507247,0.56099,101480.0,101470.0,0.00014822]
[1737940507854,0.56099,101480.0,101470.0,0.19735722]
[1737940508149,0.3638,101480.0,101470.0,0.19735722]
[1737940508352,0.3608,101480.0,101470.0,0.19735722]
[1737940508549,0.55799,101480.0,101470.0,0.00114822]
[1737940509140,0.77461432,101480.0,101470.0,0.00114822]
[1737940509345,0.197249,101450.0,101430.0,0.19876185]
[1737940509549,0.3608,101440.0,101430.0,1.69876185]
[1737940509945,0.3608,101440.0,101430.0,1.69876585]
[1737940510153,0.558068,101440.0,101430.0,0.19876585]
[1737940510354,0.918868,101440.0,101430.0,0.00147885]
[1737940510653,0.36059105,101440.0,101430.0,0.19876585]
[1737940510872,0.00014822,101450.0,101440.0,0.197268]
[1737940511053,0.36094822,101450.0,101440.0,0.197268]
[1737940511357,0.00014822,101450.0,101440.0,0.197268]
[1737940512046,0.00014822,101450.0,101440.0,0.558068]
[1737940512247,0.36094822,101450.0,101440.0,0.197268]
[1737940512450,0.00014822,101450.0,101440.0,0.197268]
[1737940512651,0.55819622,101450.0,101440.0,0.197268]
[1737940512847,0.36094822,101450.0,101440.0,0.01319589]
[1737940513051,0.55819622,101450.0,101440.0,0.01319589]
[1737940513854,0.3608,101430.0,101410.0,0.00012269]
[1737940514051,0.049331,101410.0,101380.0,0.4064585]
[1737940514248,1.13558932,101390.0,101380.0,0.4064585]
[1737940514446,1.13558932,101390.0,101380.0,0.40497895]
[1737940514749,0.197385,101380.0,101370.0,0.64364571]
[1737940514955,0.53965084,101380.0,101370.0,0.64364571]
[1737940515346,0.53965084,101380.0,101370.0,0.22374571]
[1737940516254,0.85584,101380.0,101360.0,0.4095657]
[1737940516448,0.3608,101350.0,101300.0,0.67009801]
[1737940516645,0.558321,101310.0,101300.0,0.39949801]
[1737940517153,0.3608,101310.0,101300.0,0.59703801]
[1737940517947,0.3608,101310.0,101300.0,0.39949801]
[1737940518144,0.558321,101310.0,101300.0,0.39949801]
[1737940518954,0.558321,101310.0,101300.0,0.18979801]
[1737940519259,0.860321,101310.0,101300.0,0.18979801]
[1737940519465,0.860321,101310.0,101300.0,0.10069801]
[1737940519648,0.55835978,101290.0,101280.0,0.34773123]
[1737940519959,0.19762,101260.0,101240.0,0.424]
[1737940520159,0.3608,101250.0,101240.0,0.424]
[1737940520952,0.558438,101250.0,101240.0,0.424]
[1737940521963,0.3608,101250.0,101240.0,0.427]
[1737940522256,0.3608,101250.0,101240.0,0.624658]
[1737940522560,0.3608,101250.0,101240.0,0.427]
[1737940522759,0.558438,101250.0,101240.0,0.427]
[1737940522954,0.3608,101250.0,101240.0,0.427]
[1737940523150,0.3608,101250.0,101240.0,0.624658]
[1737940523560,0.3608,101250.0,101240.0,0.427]
[1737940523757,0.3608,101250.0,101240.0,0.426]
[1737940523958,0.3608,101250.0,101240.0,0.623658]
[1737940524163,0.3608,101250.0,101240.0,2.123658]
[1737940524453,0.34226585,101250.0,101240.0,2.123658]
[1737940525459,0.08493729,101290.0,101240.0,3.54125294]
[1737940525664,0.08493729,101290.0,101280.0,0.77500432]
[1737940526053,0.08493729,101290.0,101280.0,0.55838]
[1737940526361,0.08493729,101290.0,101270.0,0.0197045]
[1737940526362,0.55984583,101290.0,101270.0,0.0197045]
[1737940526562,0.19904583,101290.0,101270.0,0.3608]
[1737940526752,0.19904583,101290.0,101270.0,0.36094822]
[1737940526956,0.00148183,101290.0,101280.0,0.19758]
[1737940528063,0.00148183,101290.0,101270.0,0.35107752]
[1737940528267,0.00148183,101290.0,101270.0,0.35207752]
[1737940528561,0.00014822,101300.0,101290.0,0.19756]
[1737940528763,0.3608,101330.0,101320.0,0.197502]
[1737940529067,0.02467,101330.0,101320.0,0.197492]
[1737940529256,0.02413018,101330.0,101320.0,1.697492]
[1737940529562,0.02413018,101330.0,101320.0,0.197492]
[1737940529860,0.38493018,101330.0,101300.0,0.3608]
[1737940530060,0.38493018,101330.0,101310.0,0.00014822]
[1737940530061,0.558318,101320.0,101310.0,0.00014822]
[1737940530260,0.7216,101320.0,101250.0,0.59374563]
[1737940530456,0.5407545,101330.0,101250.0,0.57890563]
[1737940530457,0.558364,101290.0,101250.0,0.57890563]
[1737940530656,0.197583,101280.0,101260.0,0.197615]
[1737940530853,0.558383,101280.0,101260.0,0.197615]
[1737940531161,0.3608,101290.0,101250.0,0.3608]
[1737940531162,0.197604,101270.0,101250.0,0.558429]
[1737940531669,0.197604,101270.0,101260.0,0.5584]
[1737940531670,0.00014822,101270.0,101260.0,0.5584]
[1737940532367,0.00014822,101270.0,101260.0,2.0584]
[1737940532759,0.05086161,101310.0,101260.0,2.36685969]
[1737940532760,0.36228161,101310.0,101260.0,2.36685969]
[1737940532960,0.3608,101290.0,101270.0,0.3608]
[1737940533265,0.55980561,101310.0,101290.0,0.19756]
[1737940533562,0.36228161,101310.0,101300.0,0.197541]
[1737940533862,0.55980261,101310.0,101290.0,0.197558]
[1737940534070,0.55980261,101310.0,101290.0,0.19770622]
[1737940534271,0.54126846,101310.0,101290.0,0.19869922]
[1737940534662,0.00014822,101320.0,101300.0,0.3608]
[1737940534866,0.46838564,101330.0,101320.0,0.197502]
[1737940535165,0.10758564,101330.0,101320.0,0.197502]
[1737940535355,0.558264,101340.0,101330.0,0.197482]
[1737940535560,0.558264,101340.0,101320.0,0.197499]
[1737940535755,0.3608,101340.0,101320.0,0.197499]
[1737940535965,0.558267,101340.0,101320.0,0.197499]
[1737940536262,0.558282,101330.0,101320.0,0.00014822]
[1737940537570,0.55774218,101330.0,101320.0,0.00014822]
[1737940537760,0.3608,101330.0,101320.0,0.19765022]
[1737940538068,0.559282,101330.0,101320.0,0.00014822]
[1737940538468,0.198482,101330.0,101320.0,0.00014822]
[1737940538771,0.559282,101330.0,101320.0,0.00014822]
[1737940539373,0.3618,101330.0,101320.0,0.00014822]
[1737940539576,0.559282,101330.0,101320.0,0.00014822]
[1737940539767,0.558282,101330.0,101320.0,0.00014822]
[1737940539970,0.36094822,101340.0,101320.0,0.19765022]
[1737940540169,0.36094822,101340.0,101330.0,0.197482]
[1737940540567,0.55841622,101340.0,101320.0,1.69764222]
[1737940540773,0.001,101330.0,101320.0,1.69764222]
[1737940540982,0.001,101330.0,101320.0,0.19764222]
[1737940541173,0.3618,101330.0,101320.0,0.19746526]
[1737940541372,0.197507,101320.0,101300.0,0.33381676]
[1737940541577,0.38164667,101320.0,101310.0,0.197521]
[1737940541777,0.02084667,101320.0,101310.0,0.558321]
[1737940542482,0.57914867,101320.0,101310.0,0.197521]
[1737940542785,0.57914867,101320.0,101310.0,0.00014822]
[1737940543885,0.58014867,101320.0,101310.0,0.00014822]
[1737940544484,0.38264667,101320.0,101310.0,0.19766922]
[1737940544984,0.02184667,101320.0,101310.0,0.19766922]
[1737940545185,0.36094822,101340.0,101310.0,0.19766922]
[1737940545186,0.00014822,101340.0,101310.0,0.77535748]
[1737940545375,0.00014822,101340.0,101330.0,0.197482]
[1737940545575,0.36094822,101340.0,101330.0,0.197482]
[1737940545783,0.00014822,101340.0,101330.0,0.197482]
[1737940546181,0.55841122,101340.0,101330.0,0.197482]
[1737940546690,0.197482,101330.0,101320.0,0.41412232]
[1737940546882,0.558282,101330.0,101320.0,0.41412232]
[1737940547094,0.558282,101330.0,101320.0,0.197498]
[1737940548386,0.560282,101330.0,101320.0,0.197498]
[1737940548984,0.3628,101330.0,101310.0,0.19766322]
[1737940549187,0.558302,101320.0,101310.0,0.19766322]
[1737940550089,0.55807444,101320.0,101310.0,0.19766322]
[1737940550479,0.36057244,101320.0,101310.0,0.19766322]
[1737940550681,0.3658,101330.0,101320.0,0.197502]
[1737940550977,0.3658,101330.0,101320.0,0.81564897]
[1737940550978,0.005,101330.0,101320.0,0.81564897]
[1737940551289,0.00014822,101340.0,101330.0,0.197482]
[1737940551585,0.56402394,101350.0,101340.0,0.197463]
[1737940552091,0.76148294,101350.0,101330.0,0.197472]
[1737940552387,0.76148294,101350.0,101340.0,1.5]
[1737940552584,0.197463,101340.0,101330.0,0.10614094]
[1737940552783,0.558263,101340.0,101330.0,0.00014822]
[1737940552986,0.565263,101340.0,101330.0,0.00114822]
[1737940553490,0.565263,101340.0,101330.0,0.00014822]
[1737940553491,0.67219238,101340.0,101330.0,0.00014822]
[1737940554101,0.67319238,101340.0,101330.0,0.00014822]
[1737940554782,0.67519238,101340.0,101330.0,0.00014822]
[1737940554979,0.65688615,101340.0,101330.0,0.00014822]
[1737940555189,0.65688615,101340.0,101330.0,0.19763022]
[1737940555395,0.11692938,101340.0,101330.0,0.55843022]
[1737940555687,0.11692938,101340.0,101330.0,0.19763022]
[1737940555880,0.12292938,101340.0,101330.0,0.55943022]
[1737940556283,0.14255995,101350.0,101340.0,0.197463]
[1737940556489,0.41641882,101370.0,101360.0,0.197424]
[1737940556685,0.41641882,101370.0,101360.0,0.81556713]
[1737940556879,0.90035587,101380.0,101370.0,0.197405]
[1737940557088,0.90035587,101380.0,101360.0,0.1281072]
[1737940557284,0.90035587,101380.0,101370.0,0.3107122]
[1737940557681,0.90035587,101380.0,101370.0,0.197405]
[1737940557887,0.53955587,101380.0,101370.0,0.36139447]
[1737940558592,0.53955587,101380.0,101370.0,2.22219447]
[1737940558792,0.53955587,101380.0,101370.0,2.2653811]
[1737940559783,0.90035587,101380.0,101370.0,1.84610651]
[1737940560094,0.53955587,101380.0,101370.0,2.20690651]
[1737940560487,9.637e-05,101390.0,101380.0,0.197385]
[1737940560691,0.1,101400.0,101390.0,0.197366]
[1737940560890,0.1,101400.0,101390.0,0.60134817]
[1737940561087,0.1,101400.0,101390.0,1.88738643]
[1737940561393,0.1,101400.0,101390.0,1.84669402]
[1737940561595,0.1,101400.0,101390.0,1.88735172]
[1737940561790,0.104,101400.0,101390.0,1.84416955]
[1737940561983,0.004,101400.0,101390.0,2.56293604]
[1737940562293,0.3608,101430.0,101420.0,0.197307]
[1737940562493,0.55955657,101440.0,101420.0,0.558107]
[1737940562688,0.36227957,101440.0,101430.0,0.197288]
[1737940562992,0.54149966,101460.0,101450.0,0.197249]
[1737940563183,0.54149966,101460.0,101450.0,0.77467332]
[1737940563386,0.54149966,101460.0,101450.0,0.87817706]
[1737940563796,0.3134998,101470.0,101460.0,0.19723]
[1737940563990,0.30138751,101470.0,101460.0,0.55803]
[1737940564187,0.30138751,101470.0,101460.0,0.66080054]
[1737940564389,0.42276441,101490.0,101480.0,0.197191]
[1737940564590,0.42276441,101490.0,101480.0,0.557991]
[1737940564591,0.42128557,101490.0,101480.0,0.557991]
[1737940564888,0.1,101500.0,101490.0,0.197171]
[1737940565094,1.14375778,101530.0,101500.0,0.197134]
[1737940565289,0.3608,101510.0,101500.0,0.21662432]
[1737940565592,0.557933,101510.0,101500.0,0.10815619]
[1737940565796,0.557933,101510.0,101490.0,0.197162]
[1737940565991,0.557933,101510.0,101490.0,0.19731022]
[1737940566192,0.557933,101510.0,101490.0,0.10910438]
[1737940566193,0.557952,101500.0,101490.0,0.10910438]
[1737940566497,0.197191,101480.0,101470.0,0.00147805]
[1737940566687,0.918791,101480.0,101470.0,0.00147805]
[1737940568286,0.557991,101480.0,101470.0,0.00147805]
[1737940568692,0.558991,101480.0,101470.0,0.00147805]
[1737940569290,0.7226,101480.0,101470.0,0.00147805]
[1737940569595,0.001,101480.0,101470.0,0.19868805]
[1737940569801,0.36227857,101510.0,101480.0,0.197191]
[1737940569982,0.36227857,101510.0,101490.0,0.197166]
[1737940570181,0.3608,101500.0,101490.0,0.21220314]
[1737940570687,0.55941157,101510.0,101490.0,0.21220314]
[1737940570996,0.197171,101490.0,101470.0,0.19868605]
[1737940571193,0.197171,101490.0,101480.0,0.00014822]
[1737940571494,0.557955,101500.0,101480.0,0.00014822]
[1737940571686,0.559955,101500.0,101480.0,0.19733822]
[1737940571887,0.559955,101500.0,101480.0,0.21240149]
[1737940572586,0.559955,101500.0,101480.0,0.57320149]
[1737940572783,0.38051275,101490.0,101480.0,0.1106137]
[1737940573079,0.557971,101490.0,101470.0,0.00147805]
[1737940573284,0.3608,101480.0,101470.0,0.00147805]
[1737940573493,0.557991,101480.0,101470.0,0.00147805]
[1737940573691,0.557991,101480.0,101470.0,0.00162627]
[1737940573890,0.3608,101480.0,101470.0,0.19883627]
[1737940574391,0.55812222,101490.0,101470.0,0.19983627]
[1737940574584,0.00014822,101490.0,101480.0,0.557991]
[1737940575090,0.36094822,101490.0,101480.0,0.197191]
[1737940575301,0.55811922,101490.0,101470.0,0.20282927]
[1737940575483,0.36094822,101490.0,101480.0,0.197191]
[1737940575687,0.00014822,101490.0,101480.0,0.557991]
[1737940575882,0.00014822,101490.0,101480.0,0.88444671]
[1737940576083,0.36227857,101510.0,101500.0,0.197152]
[1737940576288,0.2668,101530.0,101520.0,0.197113]
[1737940576688,0.55935907,101540.0,101520.0,1.697113]
[1737940576889,0.197094,101530.0,101500.0,0.57742432]
[1737940577187,0.197094,101530.0,101500.0,0.557948]
[1737940577188,0.557913,101520.0,101500.0,0.557948]
[1737940577393,0.557933,101510.0,101500.0,0.00014822]
[1737940577592,0.557933,101510.0,101500.0,0.19730022]
[1737940577593,0.197133,101510.0,101500.0,0.19730022]
[1737940577891,0.197133,101510.0,101500.0,0.00014822]
[1737940577892,0.557933,101510.0,101500.0,0.00014822]
[1737940578097,0.557933,101510.0,101500.0,0.00114822]
[1737940578703,0.3608,101510.0,101500.0,0.21777254]
[1737940578899,0.3608,101510.0,101500.0,0.30974653]
[1737940579204,0.55795,101510.0,101500.0,0.00014822]
[1737940579593,0.3608,101510.0,101500.0,0.19731722]
[1737940579992,0.3638,101510.0,101500.0,0.19731722]
[1737940580190,0.3638,101510.0,101500.0,0.5190912]
[1737940580608,0.3638,101510.0,101500.0,2.0190912]
[1737940580802,0.3608,101530.0,101520.0,0.197112]
[1737940580998,0.00147803,101540.0,101530.0,0.19711]
[1737940581304,0.3608,101560.0,101550.0,0.197072]
[1737940581501,0.557852,101560.0,101550.0,0.197072]
[1737940581798,0.197072,101550.0,101530.0,1.697109]
[1737940582005,0.3608,101540.0,101530.0,1.697109]
[1737940582200,0.19711,101530.0,101520.0,0.198127]
[1737940582401,0.3608,101530.0,101520.0,0.198127]
[1737940582699,0.55791,101530.0,101520.0,0.00014822]
[1737940583102,0.3658,101530.0,101520.0,0.19727822]
[1737940583398,0.005,101530.0,101520.0,0.19727822]
[1737940584404,0.557891,101540.0,101530.0,0.19711]
[1737940584593,0.3608,101540.0,101520.0,0.00114822]
[1737940584796,0.55791,101530.0,101520.0,0.19827522]
[1737940584998,0.3608,101530.0,101500.0,0.727082]
[1737940585197,0.3608,101520.0,101500.0,0.197162]
[1737940585406,0.197149,101510.0,101500.0,0.197162]
[1737940585606,0.3608,101520.0,101490.0,1.8608]
[1737940585912,0.197133,101520.0,101510.0,0.197149]
[1737940586100,0.32669499,101530.0,101520.0,0.19713]
[1737940586705,0.68749499,101530.0,101520.0,0.19713]
[1737940587003,0.19713,101520.0,101510.0,0.00014822]
[1737940587309,0.19713,101520.0,101510.0,0.19729722]
[1737940587498,0.55793,101520.0,101510.0,0.00014822]
[1737940587700,0.35092988,101520.0,101510.0,0.00014822]
[1737940587993,0.35092988,101520.0,101510.0,0.19729722]
[1737940588197,0.54805988,101520.0,101510.0,0.19729722]
[1737940588703,0.3618,101530.0,101520.0,0.19713]
[1737940589603,0.3618,101530.0,101510.0,0.00014822]
[1737940589803,0.55793,101520.0,101510.0,0.00014822]
[1737940590014,0.55893,101520.0,101510.0,0.00014822]
[1737940590201,0.3618,101520.0,101510.0,0.00014822]
[1737940590511,0.3618,101520.0,101510.0,1.69729722]
[1737940590707,0.3608,101520.0,101510.0,1.69729722]
[1737940591095,0.3608,101520.0,101510.0,1.816686]
[1737940591295,0.563913,101530.0,101510.0,1.619537]
[1737940591503,0.202113,101530.0,101520.0,0.19713]
[1737940591703,0.3608,101530.0,101520.0,0.47228039]
[1737940591899,0.3608,101530.0,101520.0,0.47227869]
[1737940592101,0.55791,101530.0,101520.0,0.49691936]
[1737940592705,0.19711,101530.0,101520.0,0.49691936]
[1737940593097,0.16630905,101530.0,101520.0,0.49691936]
[1737940593301,0.52810905,101530.0,101520.0,0.49691936]
[1737940593503,0.53310905,101530.0,101520.0,0.49691936]
[1737940593907,0.53210905,101530.0,101520.0,0.29978936]
[1737940594110,0.53410905,101530.0,101520.0,0.08316504]
[1737940594513,0.53410905,101530.0,101520.0,0.08316648]
[1737940594703,0.53410905,101530.0,101520.0,0.0400453]
[1737940595108,0.197129,101520.0,101510.0,1.73160141]
[1737940595311,0.557929,101520.0,101510.0,1.73160141]
[1737940595609,0.3678,101530.0,101510.0,1.92875041]
[1737940595806,0.007,101530.0,101520.0,0.41375332]
[1737940596312,0.007,101530.0,101520.0,0.51671858]
[1737940596505,0.005,101530.0,101520.0,0.87751858]
[1737940596706,0.55804222,101540.0,101530.0,0.197109]
[1737940597500,0.36094822,101540.0,101530.0,0.197109]
[1737940597806,0.55803822,101540.0,101530.0,0.197109]
[1737940598001,0.56303822,101540.0,101530.0,0.198109]
[1737940598208,0.56303822,101540.0,101530.0,0.001]
[1737940598504,0.00514822,101540.0,101530.0,0.558909]
[1737940598711,0.00514822,101540.0,101530.0,0.59962042]
[1737940599206,0.00514822,101540.0,101530.0,0.81624474]
[1737940599400,0.00514822,101540.0,101530.0,0.85935604]
[1737940599607,0.00814822,101540.0,101530.0,0.85935604]
[1737940600312,0.00814822,101540.0,101530.0,0.9723864]
[1737940600707,0.00814822,101540.0,101530.0,0.9292751]
[1737940600906,1e-08,101540.0,101530.0,0.97238754]
[1737940601203,0.3608,101580.0,101570.0,0.197031]
[1737940601401,0.3608,101580.0,101570.0,1.91365532]
[1737940601606,0.3608,101580.0,101570.0,1.95431959]
[1737940602412,0.557812,101580.0,101570.0,1.91365532]
[1737940602612,0.918612,101580.0,101570.0,1.5]
[1737940602814,0.921612,101580.0,101570.0,1.501]
[1737940603010,0.921612,101580.0,101570.0,0.001]
[1737940603311,0.90407699,101580.0,101570.0,0.21862432]
[1737940603507,0.90407699,101580.0,101570.0,0.21762432]
[1737940603706,0.90407699,101580.0,101570.0,0.41465532]
[1737940603707,0.70706499,101580.0,101570.0,0.41465532]
[1737940603909,0.3648,101580.0,101570.0,1.91465532]
[1737940604107,0.004,101580.0,101570.0,2.14973846]
[1737940604311,0.004,101580.0,101570.0,2.19039628]
[1737940604514,0.196995,101590.0,101580.0,0.197012]
[1737940604716,0.65277857,101600.0,101590.0,0.196993]
[1737940605217,0.65277857,101600.0,101580.0,0.197004]
[1737940605408,0.3608,101590.0,101580.0,0.19715222]
[1737940605607,0.65277857,101600.0,101580.0,0.19715222]
[1737940605814,0.65277857,101600.0,101580.0,0.19715622]
[1737940606115,0.557793,101590.0,101580.0,0.19715622]
[1737940606618,0.557793,101590.0,101580.0,0.00014822]
[1737940606811,0.557793,101590.0,101580.0,0.00114822]
[1737940608205,0.45880157,101600.0,101580.0,0.00114822]
[1737940608513,0.19718594,101660.0,101580.0,0.00114822]
[1737940608514,6.3e-07,101640.0,101630.0,0.196915]
[1737940608711,0.16919872,101650.0,101630.0,0.93822432]
[1737940609016,0.19686,101660.0,101640.0,0.557683]
[1737940609318,0.19686,101660.0,101650.0,0.57742432]
[1737940609513,0.55766,101660.0,101650.0,0.21662432]
[1737940609710,0.19686,101660.0,101650.0,0.21662432]
[1737940609913,0.55766,101660.0,101650.0,0.21662432]
[1737940610319,0.3608,101660.0,101640.0,1.5]
[1737940610520,0.557676,101650.0,101640.0,1.501]
[1737940610715,0.557676,101650.0,101640.0,0.001]
[1737940611015,0.557676,101650.0,101630.0,1.00157254]
[1737940611016,0.196897,101640.0,101630.0,0.64077254]
[1737940611223,0.557697,101640.0,101630.0,0.64077254]
[1737940611520,0.557697,101640.0,101630.0,0.42414822]
[1737940611821,0.557697,101640.0,101630.0,0.00014822]
[1737940612014,0.196936,101620.0,101610.0,0.21662432]
[1737940612314,0.557736,101620.0,101610.0,0.21662432]
[1737940612520,0.196936,101620.0,101610.0,0.21662432]
[1737940612721,0.557736,101620.0,101610.0,0.21662432]
[1737940613014,0.196936,101620.0,101610.0,0.21662432]
[1737940613419,0.196936,101620.0,101610.0,0.70743424]
[1737940613722,0.196936,101620.0,101610.0,0.51047824]
[1737940613920,0.196936,101620.0,101610.0,0.51347824]
[1737940614117,0.557736,101620.0,101610.0,0.51347824]
[1737940614417,0.557736,101620.0,101610.0,0.29685392]
[1737940615210,0.557736,101620.0,101610.0,0.002]
[1737940615414,0.196975,101600.0,101590.0,8.618e-05]
[1737940615616,0.557775,101600.0,101590.0,8.618e-05]
[1737940616022,0.557775,101600.0,101590.0,0.2167105]
[1737940616620,0.55723517,101600.0,101590.0,0.2167105]
[1737940617416,0.55723517,101600.0,101590.0,0.4137055]
[1737940617628,0.19710922,101610.0,101590.0,0.7745055]
[1737940617822,0.19710922,101610.0,101600.0,0.196975]
[1737940618127,0.196975,101600.0,101590.0,0.2167105]
[1737940618323,0.196975,101600.0,101590.0,0.4137055]
[1737940618622,0.55790522,101610.0,101590.0,0.4137055]
[1737940618824,0.002,101600.0,101590.0,0.7745055]
[1737940619123,0.002,101600.0,101590.0,0.4137055]
[1737940619327,0.198975,101600.0,101590.0,0.4137055]
[1737940619722,0.19906118,101600.0,101590.0,0.41307205]
[1737940619924,0.19906118,101600.0,101590.0,0.41361932]
[1737940620129,0.19906118,101600.0,101590.0,0.21662432]
[1737940620531,0.55986118,101600.0,101590.0,0.41361832]
[1737940620838,0.19906118,101600.0,101590.0,0.41361832]
[1737940621238,0.19906118,101600.0,101590.0,0.21662432]
[1737940621447,0.19906118,101600.0,101590.0,1.71662432]
[1737940621932,0.19906118,101600.0,101590.0,1.92897556]
[1737940622731,0.19906118,101600.0,101590.0,2.28977556]
[1737940622732,0.00208618,101600.0,101590.0,2.28977556]
[1737940622929,0.00208618,101600.0,101590.0,1.92897556]
[1737940623131,0.00208618,101600.0,101590.0,2.48777556]
[1737940623428,0.00208618,101600.0,101590.0,2.48760287]
[1737940623630,0.00014822,101610.0,101600.0,0.196975]
[1737940623828,0.3604084,101620.0,101600.0,0.57398355]
[1737940624041,0.5573454,101620.0,101610.0,0.41358032]
[1737940624338,0.00147693,101630.0,101620.0,0.196937]
[1737940624534,0.19839393,101630.0,101620.0,0.21212055]
[1737940624736,0.19839393,101630.0,101620.0,0.01518355]
[1737940624939,0.19839393,101630.0,101620.0,0.21212055]
[1737940625128,0.55919393,101630.0,101620.0,0.01518355]
[1737940625733,0.19839393,101630.0,101620.0,0.21212055]
[1737940626032,0.19839393,101630.0,101620.0,0.01618355]
[1737940626432,0.19839393,101630.0,101620.0,0.21312055]
[1737940627429,0.00147693,101630.0,101620.0,0.21312055]
[1737940627837,0.19839693,101630.0,101620.0,0.21312055]
[1737940628142,0.55919693,101630.0,101620.0,0.01618355]
[1737940628736,0.55919693,101630.0,101620.0,0.21312255]
[1737940628942,0.19839693,101630.0,101620.0,0.21312255]
[1737940629130,0.55919693,101630.0,101620.0,0.21312255]
[1737940629743,0.55919693,101630.0,101620.0,0.01618355]
[1737940631547,0.56887464,101630.0,101620.0,0.01632558]
[1737940631949,0.56887464,101630.0,101620.0,0.001]
[1737940632544,0.55034049,101630.0,101620.0,0.001]
[1737940632737,0.37047771,101630.0,101620.0,0.197939]
[1737940632936,0.55786422,101640.0,101620.0,0.197939]
[1737940633146,0.00014822,101640.0,101630.0,0.41354432]
[1737940633332,0.36094822,101640.0,101630.0,0.41354432]
[1737940633540,0.00014822,101640.0,101630.0,0.41354432]
[1737940633843,0.36094822,101640.0,101630.0,0.61154432]
[1737940634054,0.55784822,101640.0,101630.0,0.41462432]
[1737940634536,0.55784822,101640.0,101630.0,0.198]
[1737940634733,0.55784822,101640.0,101630.0,0.39492]
[1737940634934,0.36094822,101640.0,101630.0,0.61154432]
[1737940635133,0.00014822,101640.0,101630.0,0.61154432]
[1737940635334,0.55784822,101640.0,101630.0,0.61154432]
[1737940635734,0.55784822,101640.0,101630.0,0.41462432]
[1737940635938,0.19704822,101640.0,101630.0,0.61154432]
[1737940636234,0.67187383,101660.0,101630.0,0.41462432]
[1737940636539,0.67187383,101660.0,101650.0,0.21662432]
[1737940636940,0.67187383,101660.0,101650.0,0.41350532]
[1737940638047,0.67187383,101660.0,101650.0,0.21762432]
[1737940638351,0.67187383,101660.0,101650.0,0.001]
[1737940640139,0.67187383,101660.0,101650.0,0.41450532]